Cogmind - Beta 14 @@@ ROGUE MODE // 2025.01.15 @ 14:03:38 Player: PeanutArbuckle Result: Self-destructed Performance ------------- Evolutions (1) 500 Regions Visited (2) 400 Robots Destroyed (26) 130 Value Destroyed (501) 501 Prototype IDs (1) 20 Alien Tech Used (0) 0 Bonus (0) 0 TOTAL SCORE: 1551 Bonus ------- None Cogmind --------- Core Integrity 173/400 Matter 295/300 Energy 45/100 System Corruption 0% Temperature Cool (0) Movement Core (150) Ox2 Location -9/Materials Parts ------- > --- POWER (1) -------- (None) > --- PROPULSION (2) --- (None) > --- UTILITY (3) ------ Small Storage Unit Targeting Computer > --- WEAPON (3) ------- Faulty Improved EM Shotgun > --- INVENTORY (8) ---- (None) Peak State ------------ > --- POWER ------------ Improved Ion Engine > --- PROPULSION ------- Light Treads > --- UTILITY ---------- Small Storage Unit Targeting Computer > --- WEAPON ----------- Light EM Pulse Cannon Light Assault Rifle > --- INVENTORY -------- (None) [Rating: 8] Favorites ----------- Power Ion Engine Engine Ion Engine Propulsion Light Treads Treads Light Treads Utility Small Storage Unit Storage Small Storage Unit Processor Targeting Computer Weapon Light Assault Rifle Energy Gun Small Laser Energy Cannon Light EM Pulse Cannon Ballistic Gun Light Assault Rifle Ballistic Cannon Light Cannon Build | -11 -10 -9 ------- Run | Yrd Mat Mat Slots Evolved 2 | . . 2 Power . | . . . Propulsion . | . . . Utility 1 | . . 1 Weapon 1 | . . 1 Parts Attached 23 | 6 10 7 Power 5 | 1 2 2 Engine 5 | 1 2 2 Core . | . . . Reactor . | . . . Propulsion 3 | 2 . 1 Treads 3 | 2 . 1 Leg . | . . . Wheel . | . . . Hover . | . . . Flight . | . . . Utility 2 | 1 1 . Device . | . . . Storage 1 | 1 . . Processor 1 | . 1 . Hackware . | . . . Protection . | . . . Artifact . | . . . Weapon 13 | 2 7 4 Energy Gun 5 | 1 3 1 Energy Cannon 1 | . . 1 Ballistic Gun 5 | 1 2 2 Ballistic Cannon 2 | . 2 . Launcher . | . . . Special Weapon . | . . . Impact Weapon . | . . . Slashing Weapon . | . . . Piercing Weapon . | . . . Special Melee Weapon . | . . . Unidentified Prototypes 1 | . . 1 Parts Lost 10 | . 4 6 Power 1 | . . 1 Propulsion 3 | . 2 1 Utility . | . . . Weapon 6 | . 2 4 Highest Loss Streak 4 | . 1 4 To Critical Strikes 2 | . 1 1 Average Slot Usage (%) 72 | . 77 59 Engine 12 | . 14 9 Treads 10 | . 13 4 Storage 13 | . 14 11 Processor 9 | . 8 11 Energy Gun 8 | . 8 5 Ballistic Gun 12 | . 11 15 Ballistic Cannon 4 | . 6 . Peak Build Rating 8 | 6 7 8 Average Rating 5 | 4 5 6 On Entrance 3 | . 6 5 Naked Turns . | . . . Heaviest Build 15 | 13 15 14 Greatest Support 40 | 40 40 20 Greatest Overweight (x) 4 | . 4 4 Average Overweight (x) 1 | . 1 1 Largest Inventory Capacity 8 | 8 8 8 Average Capacity 7 | 7 8 8 Most Carried 5 | 5 3 1 Average Carried . | 1 1 . Final Capacity 8 | 8 8 8 Final Carried 1 | 1 1 . Class Distribution -------------------- 94% | Mutant 5% | Gunner Dominant Class ---------------- Mutant | -10/Materials Mutant | -9/Materials Resources | -11 -10 -9 ----------- Run | Yrd Mat Mat Matter Collected 604 | 242 281 81 Remotely . | . . . Salvage Created 672 | . 280 392 Parts 52 | . 27 25 Haulers Intercepted . | . . . Recyclers Shooed . | . . . Parts Field Recycled . | . . . Retrieved Matter . | . . . Parts Self-Destructed . | . . . Prevented . | . . . Kills | -11 -10 -9 ------- Run | Yrd Mat Mat Combat Hostiles Destroyed 23 | . 11 12 Guns 13 | . 5 8 Cannons 9 | . 5 4 AOE 1 | . 1 . Classes Destroyed 6 | . 5 1 Worker 1 | . 1 . Recycler 1 | . 1 . Watcher 1 | . 1 . Swarmer 14 | . 8 6 Grunt 7 | . 3 4 Sentry 2 | . . 2 Best Kill Streak 6 | . 4 6 Combat Bots Only 6 | . 4 6 Max Kills in Single Turn 2 | . 2 2 Gunslinging 1 | . . 1 Exploded 1 | . 1 . Melee . | . . . Uniques/NPCs Destroyed . | . . . Combat | -11 -10 -9 -------- Run | Yrd Mat Mat Hostile Shots Fired 240 | . 110 130 Missed 56 | . 22 34 Damage Taken 1734 | . 830 904 Core 471 | . 244 227 Absorbed by Shields . | . . . Core Remaining (%) 51 | 100 2 . Volleys Fired 93 | . 61 32 Largest 3 | . 2 3 Hottest 80 | . 75 80 Shots Fired 176 | . 110 66 Gun 130 | . 76 54 Cannon 46 | . 34 12 Launcher . | . . . Special . | . . . Kinetic 128 | . 89 39 Thermal 28 | . 13 15 Explosive . | . . . Electromagnetic 20 | . 8 12 Robot Hit Streak 18 | . 18 10 Robot Miss Streak 3 | . 3 3 Penetration Max . | . . . Secondary Targets 1 | . . 1 Max Gunslinging Chain 1 | . . 1 Shots Hit Robots 106 | . 64 42 Core Hits 47 | . 26 21 Critical Kills . | . . . Critical Parts Destroyed 1 | . 1 . Critical Strikes 2 | . 2 . Destroy 1 | . 1 . Blast 1 | . 1 . Melee Attacks . | . . . Impact . | . . . Slashing . | . . . Piercing . | . . . Sneak Attacks . | . . . Combat Hostiles . | . . . Follow-up Attacks . | . . . Damage Inflicted 1380 | . 880 500 Guns 764 | . 446 318 Cannons 574 | . 392 182 Explosions 39 | . 39 . Melee . | . . . Ramming 3 | . 3 . Kinetic 965 | . 737 228 Thermal 172 | . 82 90 Explosive . | . . . Electromagnetic 240 | . 58 182 Impact . | . . . Slashing . | . . . Piercing . | . . . Highest Corruption . | . . . Average Corruption . | . . . Corruption Purged . | . . . Corruption Blocked . | . . . Overload Shots . | . . . Overflow Damage . | . . . Projectiles . | . . . Explosions . | . . . Melee . | . . . Knockbacks 7 | . 7 . Impact . | . . . Kinetic 7 | . 7 . Secondary . | . . . Self-Inflicted Damage . | . . . Shots . | . . . Rammed 1 | . 1 . Targets Rammed 1 | . 1 . Kicked . | . . . Crushed . | . . . Highest Temperature 164 | . 90 164 Average Temperature 37 | . 24 59 Received Heat Transfer 450 | . 228 222 Siege Activations . | . . . Robots Corrupted . | . . . Combat Hostiles . | . . . Parts Fried . | . . . Impact Corruptions . | . . . Robots Melted . | . . . Combat Hostiles . | . . . Parts Melted . | . . . Heat Transferred 350 | . 150 200 Parts Sabotaged . | . . . Parts Stolen . | . . . Parts Stripped . | . . . Power Chain Reactions 1 | . 1 . Alert | -11 -10 -9 ------- Run | Yrd Mat Mat Peak Influence 302 | . 191 302 Initial 27 | . . 27 Average 78 | . 60 142 Maximum Alert Level 1 | . . 1 Low Security (%) 96 | 100 100 85 Level 1 3 | . . 14 Level 2 . | . . . Level 3 . | . . . Level 4 . | . . . Level 5 . | . . . High Security . | . . . Max Security . | . . . Squads Dispatched 2 | . 1 1 Investigation . | . . . Extermination . | . . . Reinforcement 2 | . 1 1 Assault . | . . . Garrison . | . . . Intercept . | . . . Searches Triggered . | . . . Construction Impeded . | . . . Haulers Reinforced . | . . . Active Scanning Responses . | . . . Cargo Convoy Interrupts . | . . . Stealth | -11 -10 -9 --------- Run | Yrd Mat Mat Distress Signals 4 | . 2 2 Communications Jammed . | . . . Distress Signals . | . . . Times Spotted 46 | . 27 19 Peak Tracking Total 10 | . 6 10 Tactical Retreats 5 | . 4 1 Traps | -11 -10 -9 ------- Run | Yrd Mat Mat Traps Triggered . | . . . Indirectly . | . . . Trap Hack Attempts . | . . . Triggered . | . . . Disarmed 6 | . 6 . Reprogrammed . | . . . Reused . | . . . Traps Extracted . | . . . Installed . | . . . Triggered . | . . . Machines | -11 -10 -9 ---------- Run | Yrd Mat Mat Machines Disabled 1 | . . 1 Max in Single Turn 1 | . . 1 Machines Repaired . | . . . Machines Dismantled . | . . . Machines Sabotaged . | . . . Overloaded Fab Kills . | . . . Hacking | -11 -10 -9 --------- Run | Yrd Mat Mat Machines Accessed 1 | . 1 . Terminals 1 | . 1 . Fabricators . | . . . Repair Stations . | . . . Recycling Units . | . . . Scanalyzers . | . . . Garrison Access . | . . . Total Hacks 7 | . 7 . Successful 3 | . 3 . Failed 4 | . 4 . Catastrophic . | . . . Database Lockouts . | . . . Manual . | . . . Terminals 7 | . 7 . Fabricators . | . . . Repair Stations . | . . . Recycling Units . | . . . Scanalyzers . | . . . Garrison Access . | . . . Terminal Hacks 3 | . 3 . Record 1 | . 1 . Alert Level 1 | . 1 . Disarm Traps 1 | . 1 . Fabricator Hacks . | . . . Repair Station Hacks . | . . . Recycling Unit Hacks . | . . . Scanalyzer . | . . . Garrison Access Hacks . | . . . Unauthorized Hacks . | . . . Terminals . | . . . Fabricators . | . . . Repair Stations . | . . . Recycling Units . | . . . Scanalyzers . | . . . Garrison Access . | . . . Data Cores Recovered . | . . . Used . | . . . Hacking Detections 1 | . 1 . Full Trace Events 1 | . 1 . Feedback Events . | . . . Feedback Blocked . | . . . Robot Schematics Acquired . | . . . Robots Built . | . . . Authchips . | . . . Time . | . . . Total Robot Build Rating . | . . . Part Schematics Acquired . | . . . Parts Built . | . . . Authchips . | . . . Time . | . . . Total Part Build Rating . | . . . Parts Repaired . | . . . Time . | . . . Parts Recycled . | . . . Recycled Matter . | . . . Retrieved Matter . | . . . Retrieved Components . | . . . Parts Scanalyzed . | . . . Part Schematics Acquired . | . . . Parts Damaged . | . . . Bothacking | -11 -10 -9 ------------ Run | Yrd Mat Mat Used RIF Installer . | . . . Robots Hacked . | . . . Non-combat . | . . . Combat . | . . . Robot Hacks Applied . | . . . Relay Couplers Released . | . . . Fabnet Peak Effective % . | . . . Robots Rewired . | . . . Allies Hacked . | . . . Hacks Repelled . | . . . Allies | -11 -10 -9 -------- Run | Yrd Mat Mat Total Allies . | . . . Largest Group . | . . . Highest-Rated Group . | . . . Highest-Rated Ally . | . . . Total Orders . | . . . Ally Attacks . | . . . Total Damage . | . . . Kills . | . . . Allies Corrupted . | . . . Allies Melted . | . . . Intel | -11 -10 -9 ------- Run | Yrd Mat Mat Robot Analysis Total . | . . . Derelict Logs Recovered . | . . . Drone Launches . | . . . Drone Recoveries . | . . . Exploration | -11 -10 -9 ------------- Run | Yrd Mat Mat Turns Passed 1584 | 92 1081 411 Spaces Moved 647 | 62 425 160 Core 294 | 17 198 79 Treads 353 | 45 227 81 Legs . | . . . Wheels . | . . . Hover . | . . . Flight . | . . . Fastest Speed 50 | 50 160 150 Average Speed 175 | 129 179 183 Slowest Speed 250 | 160 250 250 Overloaded Moves . | . . . Propulsion Burnouts . | . . . Robots Hopped . | . . . Cave-ins Triggered . | . . . Exploration Rate (%) 34 | 5 82 16 Regions Visited 2 Branch Regions . Pre-discovered Areas . | . . . Known Exits Taken . | . . . Unknown Exits Taken 2 | 1 1 . Scrap Searched . | . . . Spaces Dug . | . . . Terrain Destroyed 5 | . 5 . Melee . | . . . Projectile . | . . . AOE 5 | . 5 . Terrain Rammed . | . . . Walls Destroyed . | . . . Machines Disabled . | . . . Actions | -11 -10 -9 --------- Run | Yrd Mat Mat Total 942 | 74 644 224 Wait 153 | . 135 18 Move 645 | 61 424 160 Hop . | . . . Pick Up 20 | 7 8 5 Fast Attach . | . . . Attach 14 | 6 4 4 Detach . | . . . Swap 9 | . 6 3 Drop 7 | . 5 2 Fire 93 | . 61 32 Melee . | . . . Ram . | . . . Kick . | . . . Crush 1 | . 1 . Escape Stasis . | . . . Rewire . | . . . Trap . | . . . Miscellaneous . | . . . Route ------- -11/Scrapyard -10/Materials (discovered 4 exits: [*Mat x2] / [*Min x2]) -9/Materials History --------- Turn | Location | Event 4 | -11/Scrapyard | Discovered new exit (range 16) 93 | -11/Scrapyard | Entered Materials 301 | -10/Materials | Build established: Mutant 408 | -10/Materials | Discovered new exit (range 5) 505 | -10/Materials | Discovered new exit (range 3) 652 | -10/Materials | Core integrity fell below 50% 667 | -10/Materials | Core integrity fell below 20% 706 | -10/Materials | Discovered new exit (range 15) 1140 | -10/Materials | Discovered new exit (range 12) 1174 | -10/Materials | Entered another Materials area 1174 | -9/Materials | Evolved 2 slots: Utility x1, Weapon x1 1577 | -9/Materials | Core integrity fell below 50% 1581 | -9/Materials | Lost 4 parts (1p1n2w) 1585 | -9/Materials | Self-destructed Last Messages --------------- R-06 Scavenger collects Aluminum Leg. Acquired 6 matter. R-06 Scavenger collects Heat Sink. R-06 Scavenger collects Corrupted Aluminum Leg. S-10 Pest IFF system glitched. K-01 Serf collects debris. Acquired Prototype Energy Gun. Identified Imp. EM Shotgun. Targeting Computer broken. Faulty integration triggers power surge. R-06 Scavenger collects Aluminum Leg. K-01 Serf collects debris. W-16 Scout sends out distress signal. K-01 Serf collects debris. G-34 Mercenary destroyed. R-06 Scavenger collects Corrupted Ion Engine. K-01 Serf collects debris. R-06 Scavenger collects Aluminum Leg. K-01 Serf collects debris. Lgt. EM Pulse Cannon destroyed. Map ----- +----------------------------------------------------+ | ????????????????????????#####????????????????????? | | ????????????????????????# ????????????????????? | | ????????????????????????# ############### | | ????????????????????????# | | ????????????????????????# #?????############## | | ????????????????????????# #??????????????????# | | ????????????????????????# #???????????######## | | ???????????????????????## ##??????????# | | ?????????????########### #??????????# | | ???????????? #??????????# | | ???????????? #??????????# ###### | | ???????????? % #??????????# #????? | | ???????????????????##### #??????????# #????? | | ???????????????????#########%############ #????? | | ???????????????????# #????? | | ???????????????????# #????? | | ???????????????????# #????? | | ???????????????????# ######################????? | | ???????????????????# #?????????????????????????? | | ???????????????????# #?????????????????????????? | | ???????????????????# %########??????????????????? | | ????????????""" #### #??????????????????? | | ????????????""" + #??????????????????? | | ????????????""" #### #??????????????????? | | ????????????????#####+##### #??????????????????? | | ????????????????# %%% @# #??????????????????? | | ????????????????# g s # #??????????????????? | | ????????????????#%k " # #??????????????????? | | ????????????????#%" """ # #??????????????????? | | ????????????????#r""""" # #??????????????????? | | ????????????????# """""w # #??????????????????? | | ????????????????+ """ # #??????????????????? | | ???????????????## ! # #??????????????????? | | ????????????????########### #??????????????????? | | ??????????????????????????# #??????????????????? | | ??????????????????????????# #??????????????????? | | ??????????????????????????# #??????????????????? | | ??????????????????????????# #??????????????????? | | ??????????????????????????# #??????????????????? | | ??????????????????????????# #??????????????????? | | ??????????????????????????# #??????????????????? | | ??????????????????????????# #??????????????????? | | ??????????????????????????# #??????????????????? | | ??????????????????????????# #??????????????????? | | ??????????????????????????# #??????????????????? | | ??????????????????????????# #??????????????????? | | ??????????????????????????# #??????????????????? | | ??????????????????????????# #??????????????????? | | ??????????????????????????# #??????????????????? | | ??????????????????????????# #??????????????????? | +----------------------------------------------------+ Best States ------------- Heat Dissipation 28 Energy Generation 12 Energy Capacity 265 Matter Stores 300 Matter Capacity 300 Sight Range 16 Terrain Scan Density 10 Evasion (%) 50 Targeting Accuracy 5 Recoil Reduction 2 Item Schematics ----------------- None Robot Schematics ------------------ None Fabricated ------------ Nothing Alien Tech Used ----------------- None Achievements -------------- None Challenges ------------ None Game ------ Seed LinkedConstructPenetrator Manual? 0 Play Time 00:13:24 Cumulative 3.5 hours Start 2025.01.15 @ 13:52:00 End 2025.01.15 @ 14:03:38 Sessions 1 Manual Loads 0 Difficulty Rogue Special Mode None Game No. 13 Rogue 13 Adventurer 0 Explorer 0 Win Type - Total 0 Types 0/0/0/0/0/0/0/0/0 Lore% 1 Gallery% 8 Achievement% 9 Wizard Run 0 Options --------- Layout 1 ASCII 0 Keyboard 0 Movement Mouse Keybinds 0 Fullscreen 1 Font 24/Smallcaps Map View 25x20 Zoom Use 58% Tactical HUD 0 Map Filters NONE Filters NONE Steam 1 RUN: e7cf661f-2a8d-4dca-913b-e089824f902e